bitfinex-derivatives/quotes_BNBF0:USTF0_20250315
["timestamp","ask_amount","ask_price","bid_price","bid_amount"]
[1742018968313,0.30749104,594.88,593.9,11.266]
[1742018968518,0.30749104,594.87,593.9,11.266]
[1742018968721,0.29287013,594.89,593.9,11.266]
[1742018969315,0.30748797,594.88,593.9,11.266]
[1742018970013,0.3074865,594.87,593.9,11.266]
[1742018970216,0.29287259,594.87,593.9,11.266]
[1742018970419,0.3074865,594.86,593.9,11.266]
[1742018971320,0.29287259,594.87,593.9,11.266]
[1742018971521,0.30749022,594.86,593.9,11.266]
[1742018973021,0.30749022,594.92,593.9,11.266]
[1742018973218,0.29286766,594.85,593.9,11.266]
[1742018973421,0.3074878,594.84,593.9,11.266]
[1742018973823,0.3074878,594.83,593.9,11.266]
[1742018974124,0.336174,594.93,593.9,11.266]
[1742018974624,0.30751747,594.92,593.9,11.266]
[1742018975421,0.336174,594.93,593.9,11.266]
[1742018975623,0.30748898,594.92,593.9,11.266]
[1742018976021,0.29286766,594.91,593.9,11.266]
[1742018976217,0.30748898,594.9,593.9,11.266]
[1742018979026,0.30749213,594.89,593.9,11.266]
[1742018979227,0.29286766,594.89,593.9,11.266]
[1742018980122,0.30749522,594.88,593.9,11.266]
[1742018981121,0.30748919,594.87,593.9,11.266]
[1742018981325,0.30748919,594.86,593.9,11.266]
[1742018981526,0.30748919,594.88,593.9,11.266]
[1742018982127,0.30748919,594.87,593.9,11.266]
[1742018982428,0.30748919,594.86,593.9,11.266]
[1742018983028,0.30748487,594.85,593.9,11.266]
[1742018983220,0.30748487,594.86,593.9,11.266]
[1742018983425,0.30748487,594.85,593.9,11.266]
[1742018983628,0.30748487,594.84,593.9,11.266]
[1742018983924,0.30748487,594.83,593.9,11.266]
[1742018984126,0.30748487,594.86,593.9,11.266]
[1742018984328,0.30748487,594.85,593.9,11.266]
[1742018984522,0.30748487,594.86,593.9,11.266]
[1742018984725,0.30748948,594.85,593.9,11.266]
[1742018984921,0.30748948,594.84,593.9,11.266]
[1742018985125,0.30748948,594.83,593.9,11.266]
[1742018985328,0.30748948,594.82,593.9,11.266]
[1742018985628,0.30748948,594.81,593.9,11.266]
[1742018985830,0.29287506,594.84,593.9,11.266]
[1742018986528,0.30747686,594.83,593.9,11.266]
[1742018988029,0.30747686,594.92,593.9,11.266]
[1742018988226,0.29287136,594.82,593.9,11.266]
[1742018988526,0.30747686,594.81,593.9,11.266]
[1742018988729,0.30747686,594.92,593.9,11.266]
[1742018990226,0.29284548,594.91,593.9,11.266]
[1742018990524,0.30747686,594.9,593.9,11.266]
[1742018990730,0.29284548,594.91,593.9,11.266]
[1742018990931,0.30746114,594.9,593.9,11.266]
[1742018991230,0.29284548,594.91,593.9,11.266]
[1742018991929,0.30746053,594.9,593.9,11.266]
[1742018994031,0.336174,594.93,593.9,11.266]
[1742018994225,0.29284795,594.89,593.9,11.266]
[1742018995927,0.30747401,594.88,593.9,11.266]
[1742018996729,0.29284795,594.89,593.9,11.266]
[1742018997433,0.30751855,594.88,593.9,11.266]
[1742019000035,0.30751855,594.92,593.9,11.266]
[1742019000236,0.29287506,594.87,593.9,11.266]
[1742019000435,0.30752242,594.86,593.9,11.266]
[1742019003039,0.336174,594.93,593.9,11.266]
[1742019003040,0.29287752,594.85,593.9,11.266]
[1742019003637,0.30752242,594.84,593.9,11.266]
[1742019006135,0.29287999,594.83,593.9,11.266]
[1742019006533,0.30752242,594.82,593.9,11.266]
[1742019007632,0.29287999,594.83,593.9,11.266]
[1742019007834,0.30751982,594.82,593.9,11.266]
[1742019009134,0.29288245,594.81,593.9,11.266]
[1742019009335,0.30751982,594.8,593.9,11.266]
[1742019012046,0.29288492,594.79,593.9,11.266]
[1742019012243,0.30751982,594.78,593.9,11.266]
[1742019013242,0.30751909,594.77,593.9,11.266]
[1742019013446,0.30751909,594.76,593.9,11.266]
[1742019013642,0.30751909,594.78,593.9,11.266]
[1742019013843,0.30751909,594.77,593.9,11.266]
[1742019014048,0.30751909,594.76,593.9,11.266]
[1742019014242,0.30751909,594.75,593.9,11.266]
[1742019014446,0.30751909,594.74,593.9,11.266]
[1742019014642,0.29288492,594.79,593.9,11.266]
[1742019014848,0.336174,594.93,593.9,11.266]
[1742019015048,0.30748062,594.92,593.9,11.266]
[1742019015246,0.29285288,594.82,593.9,11.266]
[1742019015548,0.336174,594.93,593.9,11.266]
[1742019015746,0.30748237,594.92,593.9,11.266]
[1742019017245,0.29285288,594.91,593.9,11.266]
[1742019017547,0.30748237,594.9,593.9,11.266]
[1742019018249,0.60033771,594.89,593.9,11.266]
[1742019018547,0.30748237,594.88,593.9,11.266]
[1742019020645,0.29285534,594.89,593.9,11.266]
[1742019020845,0.30748726,594.88,593.9,11.266]
[1742019021047,0.30748726,594.92,593.9,11.266]
[1742019021349,0.336174,594.93,593.9,11.266]
[1742019021350,0.29285288,594.88,593.9,11.266]
[1742019021649,0.30748726,594.87,593.9,11.266]
[1742019022546,0.3074834,594.86,593.9,11.266]
[1742019022743,0.3074834,594.85,593.9,11.266]
[1742019022947,0.3074834,594.84,593.9,11.266]
[1742019023150,0.3074834,594.83,593.9,11.266]
[1742019023350,0.29285288,594.88,593.9,11.266]
[1742019023552,0.30747706,594.87,593.9,11.266]
[1742019024244,0.336174,594.93,593.9,11.266]
[1742019024449,0.30747326,594.92,593.9,11.266]
[1742019027154,0.29285288,594.91,593.9,11.266]
[1742019027353,0.30747326,594.9,593.9,11.266]
[1742019029856,0.29285288,594.91,593.9,11.266]
[1742019030057,0.30747238,594.9,593.9,11.266]
[1742019033154,0.30747238,594.89,593.9,11.266]
[1742019033361,0.30747238,594.88,593.9,11.266]
[1742019033859,0.30747238,594.87,593.9,11.266]
[1742019034059,0.30747238,594.92,593.9,11.266]
[1742019035157,0.29284548,594.91,593.9,11.266]
[1742019035361,0.30747238,594.9,593.9,11.266]
[1742019036161,0.30747238,594.92,593.9,11.266]
[1742019036356,0.29284795,594.89,593.9,11.266]
[1742019036559,0.30747238,594.88,593.9,11.266]
[1742019039166,0.30751789,594.87,593.9,11.266]
[1742019039364,0.30751789,594.88,593.9,11.266]
[1742019042067,0.30751789,594.92,593.9,11.266]
[1742019042272,0.29288738,594.87,593.9,11.266]
[1742019042473,0.30751789,594.86,593.9,11.266]
[1742019045274,0.60040774,594.85,593.9,11.266]
[1742019045470,0.30751789,594.84,593.9,11.266]
[1742019046973,0.30756497,594.83,593.9,11.266]
[1742019047168,0.30756497,594.84,593.9,11.266]
[1742019047375,0.30756497,594.83,593.9,11.266]
[1742019047575,0.30756497,594.84,593.9,11.266]
[1742019047778,0.30756497,594.83,593.9,11.266]
[1742019047974,0.30756497,594.84,593.9,11.266]
[1742019048279,0.60045728,594.83,593.9,11.266]
[1742019048474,0.30754615,594.82,593.9,11.266]
[1742019051072,0.29289478,594.81,593.9,11.266]
[1742019051278,0.30754615,594.8,593.9,11.266]
[1742019053782,0.30754996,594.79,593.9,11.266]
[1742019054082,0.30754996,594.78,593.9,11.266]
[1742019055680,0.29289724,594.79,593.9,11.266]
[1742019055881,0.30755224,594.78,593.9,11.266]
[1742019056683,0.33626443,594.77,593.9,11.266]
[1742019057184,0.29293916,594.76,593.9,11.266]
[1742019057385,0.33627574,594.75,593.9,11.266]
[1742019060988,0.29283686,594.74,593.9,11.266]
[1742019062888,0.33627574,594.75,593.9,11.266]
[1742019063183,0.29294409,594.73,593.9,11.266]
[1742019064490,0.30765,594.72,593.9,11.266]
[1742019066191,0.29294655,594.71,593.9,11.266]
[1742019066593,0.30765416,594.7,593.9,11.266]
[1742019069087,0.29294902,594.69,593.9,11.266]
[1742019069393,0.30765416,594.68,593.9,11.266]
[1742019072098,0.30765416,594.74,593.9,11.266]
[1742019072295,0.30765416,594.73,593.9,11.266]
[1742019072493,0.30765416,594.74,593.9,11.266]
[1742019072800,0.33627574,594.75,593.9,11.266]
[1742019072801,0.29294409,594.72,593.9,11.266]
[1742019073101,0.30765416,594.71,593.9,11.266]
[1742019073801,0.30763304,594.7,593.9,11.266]
[1742019073996,0.30763304,594.69,593.9,11.266]
[1742019074196,0.30763304,594.71,593.9,11.266]
[1742019077503,0.30762358,594.7,593.9,11.266]
[1742019077703,0.30762358,594.71,593.9,11.266]
[1742019078198,0.6005689,594.7,593.9,11.266]
[1742019078598,0.30762358,594.69,593.9,11.266]
[1742019081097,0.30763181,594.68,593.9,11.266]
[1742019081302,0.30763181,594.74,593.9,11.266]
[1742019081500,0.33627574,594.75,593.9,11.266]
[1742019081501,0.30763181,594.73,593.9,11.266]
[1742019081701,0.29294409,594.67,593.9,11.266]
[1742019084104,0.29291203,594.67,593.9,11.266]
[1742019087004,0.33627574,594.75,593.9,11.266]
[1742019087201,0.29291203,594.67,593.9,11.266]
[1742019087397,0.33627574,594.75,593.9,11.266]
[1742019090002,0.29276418,594.74,593.9,11.266]
[1742019090404,0.30757758,594.73,593.9,11.266]
[1742019090800,0.29276418,594.74,593.9,11.266]
[1742019091002,0.30757976,594.73,593.9,11.266]
[1742019093107,0.30757976,594.72,593.9,11.266]
[1742019093308,0.60052385,594.72,593.9,11.266]
[1742019093505,0.30757976,594.71,593.9,11.266]
[1742019095803,0.30761997,594.7,593.9,11.266]
[1742019096007,0.30761997,594.69,593.9,11.266]
[1742019096209,0.30761997,594.68,593.9,11.266]
[1742019096409,0.30761997,594.69,593.9,11.266]
[1742019096605,0.30761997,594.68,593.9,11.266]
[1742019096813,0.30761997,594.67,593.9,11.266]
[1742019097006,0.30761997,594.69,593.9,11.266]
[1742019097206,0.30761997,594.68,593.9,11.266]
[1742019097406,0.29294779,594.7,593.9,11.266]
[1742019097611,0.3076213,594.69,593.9,11.266]
[1742019098212,0.3076186,594.68,593.9,11.266]
[1742019098412,0.3076186,594.69,593.9,11.266]
[1742019098611,0.3076186,594.68,593.9,11.266]
[1742019098913,0.3076186,594.67,593.9,11.266]
[1742019099111,0.3076186,594.74,593.9,11.266]
[1742019099310,0.29294409,594.66,593.9,11.266]
[1742019099607,0.3076186,594.65,593.9,11.266]
[1742019099816,0.3076186,594.74,593.9,11.266]
[1742019100013,0.3076186,594.73,593.9,11.266]
[1742019100214,0.3076186,594.72,593.9,11.266]
[1742019100406,0.3076186,594.74,593.9,11.266]
[1742019100717,0.3076186,594.73,593.9,11.266]
[1742019100911,0.3076186,594.74,593.9,11.266]
[1742019101111,0.29294409,594.72,593.9,11.266]
[1742019101506,0.30761272,594.71,593.9,11.266]
[1742019102113,0.29294779,594.7,593.9,11.266]
[1742019102414,0.30761272,594.69,593.9,11.266]
[1742019103006,0.29294779,594.7,593.9,11.266]
[1742019104911,0.33627574,594.75,593.9,11.266]
[1742019120330,0.62916682,594.75,593.9,11.266]
[1742019120937,0.30753282,594.74,593.9,11.266]
[1742019123437,0.29291203,594.73,593.9,11.266]
[1742019123638,0.30753282,594.72,593.9,11.266]
[1742019126037,0.30753282,594.71,593.9,11.266]
[1742019126238,0.30753282,594.7,593.9,11.266]
[1742019129143,0.60044978,594.69,593.9,11.266]
[1742019129344,0.30753282,594.68,593.9,11.266]
[1742019133143,0.30753834,594.67,593.9,11.266]
[1742019133348,0.30753834,594.68,593.9,11.266]
[1742019133647,0.30753834,594.67,593.9,11.266]
[1742019133840,0.30753834,594.68,593.9,11.266]
[1742019136147,0.3075426,594.67,593.9,11.266]
[1742019136347,0.3075426,594.66,593.9,11.266]
[1742019136649,0.3075426,594.65,593.9,11.266]
[1742019136848,0.3075426,594.68,593.9,11.266]
[1742019138249,0.3075426,594.74,593.9,11.266]
[1742019138452,0.29291203,594.7,593.9,11.266]
[1742019138752,0.30754714,594.69,593.9,11.266]
[1742019140451,0.29291203,594.7,593.9,11.266]
[1742019140652,0.30754733,594.69,593.9,11.266]
[1742019141247,0.2929108,594.7,593.9,11.266]
[1742019141448,0.30754733,594.69,593.9,11.266]
[1742019143852,0.2929108,594.7,593.9,11.266]
[1742019144046,0.33627574,594.75,593.9,11.266]
[1742019152459,0.30748451,594.74,593.9,11.266]
[1742019158863,0.33627574,594.75,593.9,11.266]
[1742019159471,0.30749513,594.74,593.9,11.266]
[1742019161571,0.29289971,594.73,593.9,11.266]
[1742019161969,0.30750556,594.72,593.9,11.266]
[1742019162171,0.33627574,594.75,593.9,11.266]
[1742019162372,0.29289971,594.72,593.9,11.266]
[1742019164983,0.33627574,594.75,593.9,11.266]
[1742019165182,0.3074973,594.74,593.9,11.266]
[1742019166383,0.33627574,594.75,593.9,11.266]
[1742019166584,0.30750186,594.74,593.9,11.266]
[1742019167881,0.30750208,594.73,593.9,11.266]
[1742019168085,0.30750208,594.72,593.9,11.266]
[1742019168284,0.30750208,594.71,593.9,11.266]
[1742019168479,0.30750208,594.7,593.9,11.266]
[1742019168684,0.30750208,594.74,593.9,11.266]
[1742019168879,0.33627574,594.75,593.9,11.266]
[1742019169077,0.3074964,594.74,593.9,11.266]
[1742019172987,0.33627574,594.75,593.9,11.266]
[1742019173189,0.30748191,594.74,593.9,11.266]
[1742019173384,0.33627574,594.75,593.9,11.266]
[1742019174983,0.30747858,594.74,593.9,11.266]
[1742019175181,0.33627574,594.75,593.9,11.266]
[1742019176483,0.30747615,594.74,593.9,11.266]
[1742019177484,0.33627574,594.75,593.9,11.266]
[1742019177684,0.30747566,594.74,593.9,11.266]
[1742019178685,0.33627574,594.75,593.9,11.266]
[1742019183489,0.30748359,594.74,593.9,11.266]
[1742019186098,0.33627574,594.75,593.9,11.266]
[1742019186291,0.30748359,594.74,593.9,11.266]
[1742019187700,0.33627574,594.75,593.9,11.266]
[1742019197806,0.30747643,594.74,593.9,11.266]
[1742019203009,0.33627574,594.75,593.9,11.266]
[1742019204712,3.43386726,595.19,593.9,11.266]
[1742019204912,0.30740691,595.18,593.9,11.266]
[1742019207214,0.62883464,595.17,593.9,11.266]
[1742019207514,0.33604408,595.16,593.9,11.266]
[1742019210311,0.29279867,595.15,593.9,11.266]
[1742019210513,0.33605538,595.14,593.9,11.266]
[1742019213309,0.29265216,595.13,593.9,11.266]
[1742019216013,0.33605538,595.14,593.9,11.266]
[1742019216310,0.29278758,595.12,593.9,11.266]
[1742019217110,0.30741081,595.11,593.9,11.266]
[1742019217311,0.29278758,595.12,593.9,11.266]
[1742019217616,0.30740529,595.11,593.9,11.266]
[1742019219219,0.29279005,595.1,593.9,11.266]
[1742019219624,0.30740529,595.09,593.9,11.266]
[1742019221121,0.29279005,595.1,593.9,11.266]
[1742019221320,0.30740431,595.09,593.9,11.266]
[1742019222112,0.30740431,595.08,593.9,11.266]
[1742019222317,0.30740431,595.07,593.9,11.266]
[1742019224719,0.30738566,595.06,593.9,11.266]
[1742019224920,0.30738566,595.07,593.9,11.266]
[1742019225219,0.30738566,595.06,593.9,11.266]
[1742019225415,0.29278758,595.06,593.9,11.266]
[1742019225617,0.30738566,595.05,593.9,11.266]
[1742019228221,0.30738566,595.04,593.9,11.266]
[1742019228521,0.30738566,595.03,593.9,11.266]
[1742019230423,0.30738968,595.02,593.9,11.266]
[1742019230722,0.30738968,595.01,593.9,11.266]
[1742019230923,0.30738968,595.03,593.9,11.266]
[1742019231223,0.30738968,595.02,593.9,11.266]
[1742019231424,0.30738968,595.13,593.9,11.266]
[1742019231622,0.30738968,595.12,593.9,11.266]
[1742019231818,0.30738968,595.11,593.9,11.266]
[1742019232225,0.30738968,595.1,593.9,11.266]
[1742019232426,0.30738968,595.13,593.9,11.266]
[1742019232726,0.30738968,595.12,593.9,11.266]
[1742019232922,0.30738968,595.13,593.91,0.30884085]
[1742019233119,0.30738968,595.12,593.91,0.30884085]
[1742019233323,0.29278758,595.11,593.91,0.30884085]
[1742019233523,0.29278758,595.11,593.86,0.30884085]
[1742019233724,0.30738968,595.1,593.87,0.64561489]
[1742019233927,0.30738968,595.1,593.88,0.33676837]
[1742019234124,0.30738968,595.13,593.89,0.30884085]
[1742019234425,0.29279128,595.09,593.89,0.64560355]
[1742019234822,0.30738968,595.08,593.9,0.30884085]
[1742019235820,0.30738968,595.08,593.9,1.21384085]
[1742019236025,0.30738968,595.08,593.91,0.30884085]
[1742019236626,0.30748476,595.07,593.91,2.188]
[1742019236821,0.30748476,595.07,593.91,3.385]
[1742019237124,0.30748476,595.07,593.91,4.399]
[1742019237327,0.2928307,595.06,593.91,4.399]
[1742019237625,0.3361062,595.05,593.91,4.399]
[1742019237825,0.30749956,595.04,593.91,4.399]
[1742019238021,0.64361141,595.04,593.91,4.399]
[1742019238225,0.30749956,595.03,593.91,4.399]
[1742019238726,0.33612315,595.02,593.91,4.399]
[1742019238927,0.30749956,595.01,593.91,4.399]
[1742019239122,0.33613445,595.0,593.91,4.399]
[1742019239329,0.30749956,594.99,593.91,4.399]
[1742019239530,0.64365707,594.98,593.91,4.399]
[1742019239724,0.30751132,594.97,593.91,4.399]
[1742019240328,0.2928578,594.96,593.91,4.399]
[1742019240524,0.30751132,594.95,593.91,4.399]
[1742019241128,0.30750715,594.94,593.91,4.399]
[1742019241332,0.2928578,594.96,593.91,4.399]
[1742019241527,0.30750174,594.95,593.91,4.399]
[1742019243231,0.33614575,594.98,593.91,4.399]
[1742019243232,0.29286027,594.94,593.91,4.399]
[1742019245134,0.29286027,594.94,593.91,5.575]
[1742019245834,0.3075136,594.93,593.91,5.575]
[1742019246228,0.2928578,594.93,593.91,5.575]
[1742019246431,0.3075136,594.92,593.91,5.575]
[1742019248128,0.2928578,594.93,593.91,5.575]
[1742019248333,0.30751144,594.92,593.91,5.575]
[1742019248534,0.30751064,594.91,593.91,5.575]
[1742019248735,0.30751064,594.92,593.91,5.575]
[1742019248935,0.30751064,594.9,593.91,5.575]
[1742019249130,0.30751064,594.89,593.91,5.575]
[1742019249329,0.29286397,594.91,593.91,5.575]
[1742019249533,0.30751064,594.9,593.91,5.575]
[1742019252134,0.30751064,594.97,593.91,5.575]
[1742019252334,0.29286643,594.89,593.91,5.575]
[1742019252533,0.30751064,594.88,593.91,5.575]
[1742019252736,0.30751064,594.87,593.91,5.575]
[1742019252937,0.30751064,594.97,593.91,5.575]
[1742019253132,0.30751064,594.96,593.91,5.575]
[1742019253335,0.30751064,594.97,593.91,5.575]
[1742019253537,0.30751064,594.96,593.91,5.575]
[1742019253737,0.30751064,594.97,593.91,5.575]
[1742019253938,0.33614575,594.98,593.91,5.575]
[1742019254137,0.30751806,594.97,593.91,5.575]
[1742019254338,0.2928578,594.96,593.91,5.575]
[1742019254639,0.30751806,594.95,593.91,5.575]
[1742019255240,0.29286027,594.94,593.91,5.575]
[1742019255539,0.30751806,594.93,593.91,5.575]
[1742019256340,0.29286027,594.94,593.91,5.575]
[1742019256536,0.30753671,594.93,593.91,5.575]
[1742019256836,0.33617965,594.92,593.91,5.575]
[1742019257140,0.30753671,594.91,593.91,5.575]
[1742019257635,0.33617965,594.92,593.91,5.575]
[1742019257842,0.30754114,594.91,593.91,5.575]
[1742019258335,0.60042113,594.91,593.91,5.575]
[1742019258538,0.30754114,594.9,593.91,5.575]
[1742019259640,0.30754407,594.89,593.91,5.575]
[1742019259838,0.30754407,594.88,593.91,5.575]
[1742019260040,0.30754407,594.9,593.91,5.575]
[1742019260239,0.30754407,594.89,593.91,5.575]
[1742019260442,0.30754407,594.88,593.91,5.575]
[1742019260639,0.30754407,594.87,593.91,5.575]
[1742019260840,0.30754407,594.86,593.91,5.575]
[1742019261043,0.30754407,594.9,593.91,5.575]
[1742019261244,0.30754407,594.89,593.91,5.575]
[1742019261543,0.30754407,594.88,593.91,5.575]
[1742019261742,0.29287999,594.91,593.91,5.575]
[1742019261743,0.30754407,594.87,593.91,5.575]
[1742019261941,0.30754407,594.9,593.91,5.575]
[1742019263150,0.29287999,594.91,593.91,5.575]
[1742019263346,0.30754319,594.9,593.91,5.575]
[1742019264051,0.30754319,594.9,593.91,6.583]
[1742019264452,0.29288368,594.89,593.91,6.583]
[1742019264750,0.30754319,594.88,593.91,6.583]
[1742019267149,0.30754319,594.9,593.91,6.583]
[1742019267755,0.29288368,594.89,593.91,6.583]
[1742019267956,0.30754319,594.88,593.91,6.583]
[1742019268450,0.30754319,594.88,593.91,7.781]
[1742019268956,0.30754352,594.87,593.91,7.781]
[1742019269154,0.29288368,594.89,593.91,7.781]
[1742019269155,0.30754352,594.86,593.91,7.781]
[1742019269349,0.30754352,594.85,593.91,7.781]
[1742019269552,0.30754352,594.88,593.91,7.781]
[1742019269752,0.30754352,594.87,593.91,7.781]
[1742019269954,0.30754352,594.88,593.91,7.781]
[1742019270152,0.30754352,594.87,593.91,7.781]
[1742019270355,0.60042967,594.86,593.91,7.781]
[1742019270556,0.30754352,594.85,593.91,7.781]
[1742019273259,0.30754352,594.84,593.91,7.781]
[1742019273459,0.29288368,594.84,593.91,7.781]
[1742019273658,0.30754352,594.83,593.91,7.781]
[1742019274562,0.30754416,594.82,593.91,8.636]
[1742019274761,0.30754416,594.81,593.91,8.636]
[1742019274955,0.30754416,594.8,593.91,8.636]
[1742019275156,0.30754416,594.79,593.91,8.636]
[1742019275359,0.30754416,594.78,593.91,8.636]
[1742019275555,0.30754416,594.77,593.91,8.636]
[1742019275753,0.30754416,594.76,593.91,8.636]
[1742019275960,0.30754416,594.83,593.91,8.636]
[1742019276156,0.30754416,594.82,593.91,8.636]
[1742019276356,0.29289231,594.75,593.91,8.636]
[1742019276560,0.30754416,594.74,593.91,8.636]
[1742019276755,0.30754416,594.9,593.91,8.636]
[1742019276959,0.30754416,594.89,593.91,8.636]
[1742019277261,0.30754416,594.88,593.91,8.636]
[1742019277461,0.30754416,594.9,593.91,8.636]
[1742019277760,0.30754416,594.89,593.91,8.636]
[1742019277961,0.30754416,594.88,593.91,8.636]
[1742019278160,0.3361853,594.91,593.91,8.636]
[1742019278362,0.30754212,594.9,593.91,8.636]
[1742019279156,0.29288368,594.89,593.91,8.636]
[1742019279464,0.30754212,594.88,593.91,8.636]
[1742019282364,0.60042827,594.87,593.91,8.636]
[1742019282565,0.30754212,594.86,593.91,8.636]
[1742019283767,0.29288615,594.87,593.91,8.636]
[1742019283967,0.30752966,594.86,593.91,8.636]
[1742019285270,0.60041827,594.85,593.91,8.636]
[1742019285469,0.30752966,594.84,593.91,8.636]
[1742019288172,0.3361853,594.91,593.91,8.636]
[1742019288173,0.30752966,594.9,593.91,8.636]
[1742019288375,0.29288368,594.83,593.91,8.636]
[1742019288574,0.30752966,594.82,593.91,8.636]
[1742019288768,0.30752966,594.9,593.91,8.636]
[1742019288969,0.3361853,594.91,593.91,8.636]
[1742019289274,0.30749645,594.9,593.91,8.636]
[1742019290375,0.29286397,594.89,593.91,8.636]
[1742019290575,0.30749645,594.88,593.91,8.636]
[1742019291276,0.3361853,594.91,593.91,8.636]
[1742019291476,0.29286643,594.87,593.91,8.636]
[1742019291776,0.30748899,594.86,593.91,8.636]
[1742019295177,0.30748337,594.85,593.91,8.636]
[1742019295372,0.30748337,594.84,593.91,8.636]
[1742019295572,0.30748337,594.83,593.91,8.636]
[1742019295772,0.30748337,594.86,593.91,8.636]
[1742019296077,0.30748337,594.85,593.91,8.636]
[1742019296277,0.30748337,594.86,593.91,8.636]
[1742019297171,0.30748337,594.9,593.91,8.636]
[1742019297368,0.29286397,594.85,593.91,8.636]
[1742019297571,0.30748337,594.84,593.91,8.636]
[1742019300173,0.30748337,594.9,593.91,8.636]
[1742019300378,0.29287136,594.83,593.91,8.636]
[1742019300578,0.3361853,594.91,593.91,8.636]
[1742019300773,0.30748871,594.9,593.91,8.636]
[1742019301174,0.3361853,594.91,593.91,8.636]
[1742019303184,0.29278635,594.9,593.91,8.636]
[1742019305978,0.3361853,594.91,593.91,8.636]
[1742019309291,0.29283193,594.9,593.91,8.636]
[1742019311788,0.3361853,594.91,593.91,8.636]
[1742019314589,2.57270923,595.92,593.91,8.636]
[1742019314794,0.33567184,595.82,593.92,0.33674568]
[1742019314990,0.30734705,595.81,593.92,0.33674568]
[1742019315191,0.30734705,595.8,593.92,0.33674568]
[1742019315397,0.30734705,595.79,593.92,0.33674568]
[1742019315590,0.30734705,595.78,593.92,0.33674568]
[1742019315896,0.30734705,595.77,593.92,0.33674568]
[1742019316096,0.30734705,595.76,593.92,0.33674568]
[1742019316296,0.30734705,595.75,593.92,0.33674568]
[1742019316498,0.33567184,595.82,593.92,0.33674568]
[1742019316499,0.30734705,595.74,593.92,0.33674568]
[1742019316699,0.30734705,595.73,593.92,0.33674568]
[1742019316899,0.33567184,595.82,593.92,0.33674568]
[1742019317097,0.30733571,595.81,593.92,0.33674568]
[1742019317294,0.30733571,595.8,593.92,0.33674568]
[1742019317494,0.30733571,595.79,593.92,0.33674568]
[1742019317696,0.33570001,595.77,593.92,1.51174568]
[1742019317896,0.30733571,595.76,593.92,1.51174568]
[1742019318101,0.33571692,595.74,593.92,2.47474568]
[1742019318296,0.30733571,595.73,593.92,2.47474568]
[1742019318498,0.30733571,595.73,593.92,4.56174568]
[1742019318695,0.33573383,595.71,593.92,6.90474568]
[1742019318900,0.33573383,595.71,593.92,8.23674568]
[1742019319202,0.30734967,595.7,593.92,8.23674568]
[1742019320196,0.33575073,595.68,593.92,8.23674568]
[1742019320403,0.30734967,595.67,593.92,8.23674568]
[1742019320597,0.33576764,595.65,593.92,8.23674568]
[1742019321103,0.30734653,595.64,593.92,8.23674568]
[1742019321303,0.33578456,595.62,593.92,8.23674568]
[1742019321602,0.30734653,595.61,593.92,8.23674568]
[1742019322302,0.33580147,595.59,593.92,8.23674568]
[1742019322701,0.30734598,595.58,593.92,8.23674568]
[1742019322903,0.33581838,595.56,593.92,8.23674568]
[1742019323202,0.30734598,595.55,593.92,8.23674568]
[1742019323398,0.3358353,595.53,593.92,8.23674568]
[1742019323600,0.30734598,595.52,593.92,8.23674568]
[1742019324403,0.29272232,595.51,593.92,8.23674568]
[1742019324603,0.30734598,595.5,593.92,8.23674568]
[1742019324806,0.3358635,595.48,593.92,8.23674568]
[1742019325104,0.30734598,595.47,593.92,8.23674568]
[1742019325299,0.30734598,595.47,593.92,9.44174568]
[1742019325507,0.33588042,595.45,593.92,9.44174568]
[1742019325703,0.30734598,595.44,593.92,9.44174568]